bitfinex/quotes_ETHUSD_20250802
["timestamp","ask_amount","ask_price","bid_price","bid_amount"]
[1754166788353,4.7304,3416.0,3415.5,1.391]
[1754166788686,4.584,3416.0,3415.7,0.1464]
[1754166789182,0.1474,3416.4,3416.0,3.0]
[1754166789480,4.584,3416.3,3416.0,3.0]
[1754166789644,4.584,3416.3,3416.1,1.2446]
[1754166790170,4.584,3416.3,3416.2,1.391]
[1754166790682,4.584,3416.3,3416.2,0.9544]
[1754166790897,4.584,3416.3,3416.0,3.0]
[1754166791049,4.584,3416.3,3416.0,3.1464]
[1754166791249,4.584,3416.3,3416.0,3.9544]
[1754166791659,0.7598,3416.2,3415.2,0.808]
[1754166791885,0.7598,3416.2,3415.1,0.808]
[1754166792086,0.1464,3415.9,3415.4,3.1464]
[1754166792465,0.1464,3415.9,3415.5,1.2446]
[1754166792664,0.1464,3415.9,3415.5,1.46494431]
[1754166792877,4.584,3416.3,3415.6,1.2446]
[1754166793083,0.1464,3416.1,3415.6,1.391]
[1754166793462,0.7598,3416.0,3415.2,0.808]
[1754166793795,4.584,3416.3,3415.2,0.808]
[1754166793796,4.584,3416.3,3415.5,3.0]
[1754166793997,0.1464,3416.1,3415.7,0.1464]
[1754166794383,0.1464,3416.1,3415.8,0.808]
[1754166795776,0.1464,3416.1,3415.8,1.2446]
[1754166796699,0.1464,3416.1,3415.7,0.1464]
[1754166797204,0.1464,3416.1,3415.7,1.391]
[1754166797799,0.1464,3416.1,3415.7,0.1464]
[1754166798873,0.1464,3416.1,3415.7,1.391]
[1754166799114,1.2409925,3416.0,3415.5,0.22003636]
[1754166799265,0.1464,3415.6,3415.5,0.22003636]
[1754166799601,4.582,3415.6,3415.3,3.0]
[1754166799820,4.7284,3415.6,3415.3,3.0]
[1754166800021,5.4882,3415.6,3415.3,3.0]
[1754166800223,1.24099786,3415.5,3414.4,1.2446]
[1754166800425,1.38739893,3415.4,3415.3,0.22259153]
[1754166800584,0.1464,3415.1,3414.6,0.1464]
[1754166800786,5.3418,3415.0,3414.6,0.1464]
[1754166801030,4.582,3415.0,3414.6,0.1464]
[1754166801587,4.582,3415.0,3414.1,3.4366]
[1754166801588,1.2044,3414.9,3414.1,3.4366]
[1754166801885,0.1464,3414.7,3414.3,0.1464]
[1754166802210,1.1881,3414.6,3414.3,0.22300898]
[1754166802409,0.8782,3414.5,3414.3,0.22300898]
[1754166802614,0.8782,3414.5,3414.0,14.57333178]
[1754166802816,0.8782,3414.5,3414.1,3.0]
[1754166803328,0.1464,3414.5,3414.1,4.1954]
[1754166803529,4.582,3414.6,3414.2,1.1954]
[1754166803739,4.7284,3414.6,3414.2,0.1464]
[1754166804102,0.7318,3414.5,3414.2,0.36630766]
[1754166804304,0.1464,3414.3,3414.2,0.21990766]
[1754166804504,0.1464,3414.3,3414.0,0.002]
[1754166804704,1.1881,3414.2,3414.0,0.002]
[1754166805307,0.1464,3414.1,3414.0,0.002]
[1754166805508,0.8782,3414.1,3414.0,0.002]
[1754166806420,1.3345,3414.1,3414.0,0.22729648]
[1754166806815,1.3345,3414.1,3414.0,0.002]
[1754166807752,0.7318,3414.5,3414.0,0.21774866]
[1754166807954,0.7318,3414.5,3414.0,0.002]
[1754166808100,5.7711,3414.4,3414.0,0.002]
[1754166808417,0.1464,3414.2,3414.0,0.21774866]
[1754166808618,1.22471287,3414.1,3414.0,0.21774866]
[1754166808818,1.22471287,3414.1,3414.0,0.002]
[1754166808819,1.1881,3414.1,3414.0,0.002]
[1754166809039,1.7381,3414.1,3414.0,0.002]
[1754166809210,8.7771,3414.1,3414.0,0.002]
[1754166811935,8.9235,3414.1,3414.0,0.002]
[1754166813545,12.9575,3414.1,3414.0,0.002]
[1754166813719,13.5075,3414.1,3414.0,0.002]
[1754166815772,7.9172,3414.1,3414.0,0.002]
[1754166816056,13.0512,3414.1,3414.0,0.002]
[1754166816555,12.5012,3414.1,3414.0,0.002]
[1754166816757,12.9575,3414.1,3414.0,0.002]
[1754166816933,7.1854,3414.1,3414.0,0.002]
[1754166817133,11.7694,3414.1,3414.0,0.002]
[1754166817343,12.9575,3414.1,3414.0,0.002]
[1754166817543,13.5075,3414.1,3414.0,0.002]
[1754166818562,12.3194,3414.1,3414.0,0.002]
[1754166818938,13.5075,3414.1,3414.0,0.002]
[1754166820076,16.5985,3414.1,3414.0,0.002]
[1754166820231,13.5075,3414.1,3414.0,0.002]
[1754166822962,8.9235,3414.1,3414.0,0.002]
[1754166823268,13.5075,3414.1,3414.0,0.002]
[1754166824081,11.7694,3414.1,3414.0,0.002]
[1754166824776,12.3194,3414.1,3414.0,0.002]
[1754166825187,7.1854,3414.1,3414.0,0.002]
[1754166825328,12.9575,3414.1,3414.0,0.002]
[1754166825533,13.3611,3414.1,3414.0,0.002]
[1754166825829,16.4521,3414.1,3414.0,0.002]
[1754166828849,19.54382999,3414.1,3414.0,0.002]
[1754166829230,19.4521,3414.1,3414.0,0.002]
[1754166829479,19.5438385,3414.1,3414.0,0.002]
[1754166830230,19.54383248,3414.1,3414.0,0.002]
[1754166834164,3.641,3414.0,3413.9,0.002]
[1754166834353,4.94934642,3414.0,3413.9,0.002]
[1754166835066,4.91273248,3414.0,3413.9,0.002]
[1754166835256,7.94934642,3414.0,3412.0,0.7263]
[1754166835435,3.641,3413.8,3412.0,0.002]
[1754166835633,0.6964,3412.1,3412.0,0.002]
[1754166835853,5.2804,3412.1,3412.0,0.002]
[1754166836062,5.2804,3412.1,3412.0,1.1652]
[1754166837032,5.2804,3412.1,3412.0,0.002]
[1754166838082,5.2804,3412.1,3412.0,1.1652]
[1754166839350,0.1464,3412.1,3412.0,0.7263]
[1754166839555,4.7304,3412.1,3412.0,0.002]
[1754166839787,5.2804,3412.1,3412.0,0.002]
[1754166841056,0.1464,3412.1,3412.0,1.1652]
[1754166841290,4.7314,3412.1,3412.0,1.1652]
[1754166841672,7.044,3412.4,3412.0,1.1652]
[1754166842001,4.11,3412.3,3412.2,3.0]
[1754166842213,7.045,3413.6,3412.2,3.9168]
[1754166842496,4.585,3413.5,3412.3,0.9168]
[1754166842650,4.585,3413.5,3412.4,0.9168]
[1754166842851,4.585,3413.5,3412.2,3.0]
[1754166842852,4.585,3413.5,3412.5,0.9168]
[1754166843084,4.585,3413.5,3412.2,3.0]
[1754166843285,4.585,3413.5,3412.6,0.9168]
[1754166843581,4.585,3413.5,3412.7,0.7243]
[1754166843755,4.585,3413.5,3412.8,0.1925]
[1754166843951,4.585,3413.5,3412.8,3.1925]
[1754166844152,4.585,3413.5,3412.8,3.0]
[1754166844372,4.585,3413.5,3412.9,0.9168]
[1754166844572,4.585,3413.5,3412.8,3.0]
[1754166844789,7.045,3413.6,3413.0,0.9168]
[1754166844976,4.584,3413.5,3413.0,0.9168]
[1754166845190,4.584,3413.5,3413.1,0.9168]
[1754166845391,4.584,3413.5,3412.8,3.0]
[1754166845392,4.584,3413.5,3413.2,0.9168]
[1754166845588,4.584,3413.5,3412.8,3.0]
[1754166845589,4.584,3413.5,3413.3,0.9168]
[1754166845909,4.584,3413.5,3413.4,0.9168]
[1754166846916,0.001,3414.7,3413.4,3.9168]
[1754166847080,0.001,3414.7,3413.5,0.9168]
[1754166847279,4.584,3414.2,3413.5,0.9168]
[1754166847481,4.584,3414.2,3414.0,3.0]
[1754166847694,4.584,3414.2,3414.1,0.9168]
[1754166850390,0.001,3414.7,3414.1,1.07289876]
[1754166850590,4.583,3414.5,3414.2,0.9168]
[1754166850804,4.583,3414.5,3414.3,0.9168]
[1754166850995,4.583,3414.5,3414.4,0.9168]
[1754166851575,4.583,3414.5,3414.4,1.0632]
[1754166851970,0.001,3414.7,3414.4,1.0632]
[1754166852203,0.001,3414.7,3414.6,3.0]
[1754166852392,0.001,3414.7,3414.6,3.1464]
[1754166852908,0.001,3414.7,3414.6,4.0634]
[1754166853791,0.001,3414.7,3414.6,0.7243]
[1754166858000,0.001,3414.7,3414.6,0.917]
[1754166858518,0.001,3414.7,3414.6,0.7243]
[1754166859105,0.001,3414.7,3414.5,0.8707]
[1754166859305,1.18,3414.6,3414.5,0.1464]
[1754166859693,0.001,3414.7,3414.5,0.1464]
[1754166859900,0.001,3414.7,3414.0,0.7243]
[1754166860119,0.1464,3414.5,3414.0,0.8707]
[1754166860307,0.001,3414.7,3414.1,0.1927]
[1754166860511,0.1474,3414.7,3414.2,0.1464]
[1754166860705,0.1474,3414.7,3414.3,0.7243]
[1754166861697,1.18,3414.6,3413.9,0.7243]
[1754166861898,1.2053,3414.5,3413.9,0.1464]
[1754166862124,0.8811,3414.4,3413.9,0.1464]
[1754166862318,4.58,3414.3,3413.9,0.1464]
[1754166862525,5.0506,3414.3,3413.9,0.1464]
[1754166864194,4.58,3414.3,3413.9,0.1464]
[1754166864396,4.58,3414.3,3414.0,0.7594]
[1754166864597,4.58,3414.3,3413.9,0.1464]
[1754166865021,4.58,3414.3,3413.5,0.21911797]
[1754166865022,1.2053,3414.2,3413.5,0.21911797]
[1754166865335,4.58,3414.3,3413.4,0.1464]
[1754166865336,0.1464,3413.9,3413.4,0.1464]
[1754166865505,5.0506,3413.8,3413.4,0.1464]
[1754166866233,5.0506,3413.8,3413.2,0.880368]
[1754166866234,5.0506,3413.8,3413.3,0.1464]
[1754166866420,4.58,3413.8,3413.4,0.7594]
[1754166866595,4.58,3413.8,3413.2,3.15063494]
[1754166866790,4.58,3413.8,3413.5,0.9058]
[1754166867750,5.0506,3413.8,3413.5,0.1464]
[1754166868038,5.7853,3413.8,3413.5,0.1464]
[1754166868554,1.2053,3413.7,3413.0,0.880368]
[1754166868744,1.2053,3413.7,3413.3,0.1464]
[1754166868908,4.7264,3413.8,3413.3,0.1464]
[1754166869230,1.2053,3413.6,3413.3,0.1464]
[1754166869598,4.7264,3413.8,3413.3,0.1464]
[1754166869796,1.2053,3413.5,3413.3,0.1464]
[1754166870196,4.7264,3413.8,3413.3,0.1464]
[1754166870197,0.1464,3413.8,3413.3,0.1464]
[1754166870533,4.58,3413.7,3413.3,0.3391]
[1754166870731,4.58,3413.7,3413.4,0.7594]
[1754166870911,4.58,3413.7,3413.5,0.7594]
[1754166871521,4.7264,3413.8,3413.6,0.7594]
[1754166871850,4.7264,3413.8,3413.5,0.2176659]
[1754166871851,4.7264,3413.8,3413.7,0.7594]
[1754166871998,4.7264,3413.8,3413.3,0.3391]
[1754166872197,4.7264,3413.8,3413.1,3.002]
[1754166872198,1.2053,3413.7,3413.1,0.002]
[1754166872428,1.2053,3413.7,3413.3,0.1464]
[1754166872630,0.4706,3413.6,3413.3,0.1464]
[1754166873829,4.7264,3413.8,3413.3,0.1464]
[1754166874128,4.7264,3413.8,3413.3,0.9058]
[1754166876234,1.2053,3413.7,3413.3,0.1464]
[1754166876830,1.2053,3413.6,3413.3,0.1464]
[1754166878032,1.2053,3413.6,3413.3,0.1484]
[1754166878355,4.7264,3413.8,3413.3,0.1484]
[1754166878514,1.2053,3413.5,3413.3,0.1484]
[1754166878741,4.579,3413.4,3413.3,0.002]
[1754166878941,5.9307,3413.4,3413.3,0.002]
[1754166879665,0.1464,3413.4,3413.3,0.002]
[1754166879850,0.1464,3414.0,3413.3,0.9078]
[1754166880177,4.579,3413.9,3413.7,0.1464]
[1754166881360,4.579,3414.2,3413.8,0.9058]
[1754166881569,4.579,3414.2,3413.9,0.7594]
[1754166881776,4.579,3414.2,3414.0,0.1464]
[1754166883474,1.2063,3414.7,3414.1,0.1464]
[1754166883660,4.579,3414.4,3414.3,0.1464]
[1754166884175,0.001,3414.7,3414.3,3.1464]
[1754166884376,4.58,3414.7,3414.4,0.7594]
[1754166884687,4.58,3414.7,3414.6,0.1464]
[1754166884688,0.001,3414.7,3414.6,0.1464]
[1754166884842,0.001,3414.7,3414.6,3.1464]
[1754166885172,0.001,3414.7,3414.6,3.9058]
[1754166886374,0.001,3414.7,3414.6,0.9058]
[1754166886848,0.001,3414.7,3414.6,0.1464]
[1754166887482,0.001,3414.7,3414.3,3.0]
[1754166887687,1.2053,3414.6,3413.9,3.0]
[1754166887998,1.2053,3414.5,3413.9,3.0]
[1754166888205,0.001,3414.7,3413.9,3.0]
[1754166888349,0.001,3414.7,3413.8,5.458229]
[1754166888350,1.2053,3414.4,3413.8,5.458229]
[1754166888544,1.2053,3414.4,3413.8,0.880229]
[1754166888545,0.7347,3414.3,3413.8,0.880229]
[1754166888969,1.2053,3414.2,3413.8,0.880229]
[1754166889178,4.577,3414.4,3413.8,0.880229]
[1754166889388,0.4706,3414.1,3413.8,0.880229]
[1754166889687,4.577,3414.4,3413.9,0.7594]
[1754166889988,4.577,3414.4,3414.0,0.7594]
[1754166890146,0.001,3414.7,3414.1,0.7594]
[1754166890853,0.7357,3414.7,3413.8,0.880229]
[1754166891083,0.4706,3414.6,3413.9,3.0]
[1754166891285,0.7347,3414.5,3413.8,3.880229]
[1754166891648,0.4706,3414.4,3413.8,3.880229]
[1754166891954,0.7432,3414.3,3413.8,0.880229]
[1754166892172,0.001,3414.7,3413.5,0.21888525]
[1754166892448,1.1717,3414.2,3413.9,0.7432]
[1754166892649,0.001,3414.7,3413.9,0.7432]
[1754166892850,1.1717,3414.6,3413.9,0.7432]
[1754166893277,1.1717,3414.5,3413.9,0.7432]
[1754166893477,1.20830965,3414.4,3413.9,0.7432]
[1754166893697,1.1717,3414.3,3413.9,0.7432]
[1754166893901,1.1717,3414.2,3413.9,0.7432]
[1754166894087,1.1717,3414.1,3413.5,0.2205494]
[1754166894286,1.1717,3414.1,3413.3,0.002]
[1754166894287,1.1717,3414.0,3413.3,0.002]
[1754166894499,4.577,3413.9,3413.3,0.002]
[1754166894704,5.7487,3413.9,3413.3,0.002]
[1754166895615,0.7432,3413.8,3413.3,0.002]
[1754166895981,4.577,3413.9,3413.3,0.002]
[1754166896177,1.1717,3413.7,3413.3,0.002]
[1754166896814,4.577,3413.9,3413.3,0.002]
[1754166897118,1.1717,3413.6,3413.3,0.002]
[1754166897620,1.1717,3413.5,3413.3,0.002]
[1754166897986,1.1717,3413.4,3413.3,0.002]
[1754166898191,1.3181,3413.4,3413.3,0.002]
[1754166900820,4.577,3413.7,3413.3,0.002]
[1754166900984,1.1717,3413.4,3413.3,0.002]
[1754166901208,1.3181,3413.4,3413.3,0.002]
[1754166903244,4.577,3413.6,3413.3,0.002]
[1754166903434,1.1717,3413.4,3413.3,0.002]
[1754166906134,1.75832037,3413.4,3413.3,0.002]
[1754166906331,1.7217,3413.4,3413.3,0.002]
[1754166906528,1.7217,3413.4,3413.1,0.002]
[1754166906529,0.55,3413.3,3413.1,0.002]
[1754166906735,0.55,3413.1,3412.6,0.002]
[1754166906973,0.55,3412.6,3411.6,0.002]
[1754166907277,0.6964,3412.1,3411.6,0.002]
[1754166907437,0.73303433,3412.1,3411.6,0.002]
[1754166907637,1.90473433,3412.1,3411.6,0.002]
[1754166907820,1.8681,3412.1,3411.6,0.002]
[1754166908021,1.90473433,3412.1,3411.6,0.002]
[1754166908257,4.99473433,3412.1,3411.6,0.002]
[1754166908441,3.09,3411.5,3410.2,0.1464]
[1754166908646,3.55,3411.6,3409.4,0.117518]
[1754166908647,3.64,3411.0,3409.4,0.117518]
[1754166908842,0.1464,3409.5,3408.7,0.1464]
[1754166909042,0.1464,3409.2,3408.4,0.755]
[1754166909242,0.55,3409.0,3408.7,0.22396802]
[1754166909433,0.1464,3408.5,3408.4,0.755]
[1754166909629,1.3181,3408.5,3408.4,0.755]
[1754166909867,0.1464,3408.5,3408.4,0.755]
[1754166910155,4.7234,3408.5,3408.4,0.755]
[1754166910722,4.7234,3408.5,3407.9,0.755]
[1754166910917,7.043,3409.2,3408.0,3.3531]
[1754166910918,0.1464,3408.6,3408.0,3.3531]
[1754166911166,0.1464,3408.6,3408.1,0.9014]
[1754166911333,4.577,3408.5,3408.1,0.9014]
[1754166911678,0.7432,3409.1,3408.1,0.9014]
[1754166911679,4.577,3408.4,3408.1,0.9014]
[1754166912332,4.577,3408.4,3407.9,0.755]
[1754166912527,1.1717,3408.3,3407.9,0.21780174]
[1754166912860,0.1464,3408.0,3407.5,0.1464]
[1754166913073,4.579,3407.9,3407.5,0.1464]
[1754166913374,4.579,3408.4,3408.1,3.0]
[1754166913525,4.579,3408.4,3407.9,0.1464]
[1754166913526,4.579,3408.4,3408.2,1.1081]
[1754166913723,4.579,3408.4,3408.3,1.2545]
[1754166914035,4.579,3408.4,3408.3,4.2545]
[1754166914261,0.1464,3408.9,3408.5,3.0]
[1754166914424,4.579,3408.8,3408.4,0.755]
[1754166914624,4.579,3408.8,3408.5,0.755]
[1754166914875,1.168825,3409.1,3408.7,3.1464]
[1754166915028,1.168825,3409.1,3408.7,0.1464]
[1754166915376,1.168825,3409.1,3409.0,5.93341155]
[1754166915661,1.168825,3409.1,3409.0,7.04151155]
[1754166917458,1.168825,3409.1,3409.0,7.59151155]
[1754166917624,4.58,3410.1,3409.8,3.0]
[1754166917959,4.58,3410.1,3409.9,0.1464]
[1754166918450,7.047,3410.2,3409.9,3.1464]
[1754166918656,11.627,3410.2,3409.9,3.1464]
[1754166918851,0.1464,3410.4,3409.9,6.83398035]
[1754166919051,0.1464,3410.6,3410.1,6.07886532]
[1754166919254,4.58,3410.5,3410.1,0.1464]
[1754166920526,4.58,3410.5,3410.1,3.07883944]
[1754166920726,4.58,3410.5,3410.1,0.1464]
[1754166921427,4.58,3410.5,3410.1,3.1464]
[1754166921627,4.58,3410.5,3410.1,0.1464]
[1754166922137,4.58,3410.5,3410.2,3.0]
[1754166922596,0.1464,3410.7,3410.2,3.0]
[1754166922597,0.4374,3411.1,3410.2,3.0]
[1754166922730,0.1464,3410.9,3410.4,0.1464]
[1754166923072,4.58,3410.9,3410.5,3.7395]
[1754166923356,4.58,3410.9,3410.7,0.1464]
[1754166923926,1.10760479,3411.3,3410.7,0.1464]
[1754166924142,4.58,3411.1,3410.7,0.8859]
[1754166924352,4.58,3411.1,3410.7,0.1464]
[1754166924763,4.58,3411.1,3410.7,0.29512588]
[1754166925267,4.58,3411.1,3410.7,0.1464]
[1754166926443,1.25400479,3411.3,3410.7,3.1464]
[1754166926741,1.25400479,3411.3,3411.0,2.93162865]
[1754166926949,1.10760479,3411.3,3411.2,5.93151969]
[1754166927158,4.58,3411.6,3411.2,1.239]
[1754166927471,0.4374,3412.1,3411.6,0.1464]
[1754166927472,4.58,3411.7,3411.6,0.1464]
[1754166928643,5.7678,3411.7,3411.6,0.1464]
[1754166929329,5.7678,3411.7,3411.4,0.1464]
[1754166929529,1.1878,3411.6,3410.8,3.0]
[1754166929762,1.1878,3411.5,3410.7,0.1505369]
[1754166929960,1.1878,3411.5,3411.1,0.1464]
[1754166930143,1.1878,3411.4,3411.1,0.1464]
[1754166930342,0.4374,3411.4,3411.1,0.1464]
[1754166930542,1.1878,3411.3,3411.1,0.1464]
[1754166930875,1.1878,3411.2,3411.0,0.1464]
[1754166931033,0.1464,3411.6,3411.0,0.1464]
[1754166931333,1.1878,3411.1,3411.0,0.1464]
[1754166933333,1.1878,3411.1,3410.7,0.29995887]
[1754166933535,4.7254,3411.2,3410.7,0.1464]
[1754166933730,1.1878,3411.0,3410.7,0.1464]
[1754166934151,4.7254,3411.2,3410.7,0.1464]
[1754166934360,0.7504,3410.9,3410.7,0.1464]
[1754166934675,4.579,3411.1,3411.0,0.1464]
[1754166934837,4.579,3411.3,3410.8,3.1464]
[1754166935032,1.1878,3411.2,3411.0,0.1464]
[1754166935439,1.1878,3411.1,3411.0,0.1464]
[1754166935636,1.1878,3411.1,3410.1,4.31368131]
[1754166935950,1.3342,3411.1,3410.7,0.1464]
[1754166936286,5.7668,3411.0,3410.7,0.1464]
[1754166937076,1.1878,3410.9,3410.7,0.1464]
[1754166937281,0.001,3411.6,3410.7,3.7395]
[1754166937282,4.58,3411.6,3410.7,3.7395]
[1754166937602,4.58,3411.6,3411.3,3.0]
[1754166937896,0.001,3411.6,3411.5,3.0776619]
[1754166938186,0.001,3416.8,3411.7,2.93109007]
[1754166938187,4.579,3412.3,3411.7,2.93109007]
[1754166938398,0.7504,3412.7,3411.7,2.93109007]
[1754166938399,4.579,3412.7,3411.9,3.0]
[1754166938689,4.579,3412.7,3412.1,3.0]
[1754166939005,4.579,3412.7,3411.8,0.7395]
[1754166939348,4.579,3412.7,3412.0,3.0]
[1754166939549,4.579,3412.7,3411.9,3.0]
[1754166939748,4.579,3412.7,3412.2,3.0]
[1754166939987,5.7658,3412.8,3412.2,3.0]
[1754166940349,5.7658,3412.8,3412.2,2.93064893]
[1754166940545,4.578,3412.9,3412.3,0.7395]
[1754166940891,2.22670651,3413.2,3412.4,0.3531]
[1754166940892,4.578,3413.2,3412.4,0.3531]
[1754166941074,4.578,3413.2,3412.9,3.0]
[1754166941246,1.1878,3413.5,3412.9,3.0]
[1754166941446,5.7658,3413.5,3412.5,3.0]
[1754166941652,0.7504,3413.4,3412.4,3.0]
[1754166941851,0.7504,3413.4,3412.8,3.0]
[1754166942051,0.7504,3413.4,3412.5,2.93032341]
[1754166942480,0.7504,3413.4,3412.7,3.0]
[1754166942878,0.7504,3413.4,3412.5,3.0]
[1754166943199,0.7504,3413.4,3412.5,5.93034828]
[1754166943376,0.7504,3413.4,3412.7,3.0]
[1754166943792,0.7504,3413.4,3412.4,5.93045424]
[1754166944088,0.7504,3413.4,3412.3,3.96299111]
[1754166944294,0.7514,3413.4,3412.3,3.96299111]
[1754166944493,0.4374,3413.3,3412.3,3.96299111]
[1754166944664,0.4374,3413.3,3412.3,6.89350959]
[1754166945189,0.7504,3413.2,3412.3,3.22349111]
[1754166945389,0.4374,3413.1,3412.3,0.22349111]
[1754166945592,0.4374,3413.1,3411.9,0.7395]
[1754166945781,0.7504,3413.0,3411.9,3.0]
[1754166945985,5.0144,3412.9,3411.9,3.21884701]
[1754166946198,4.577,3412.9,3411.9,3.21884701]
[1754166946357,1.1878,3412.8,3411.9,3.21884701]
[1754166946558,1.1878,3412.8,3411.9,7.45884701]
[1754166946759,0.7504,3413.1,3412.0,0.7395]
[1754166946969,0.001,3413.4,3412.0,0.7395]
[1754166946970,4.577,3413.3,3412.4,3.0]
[1754166947174,4.577,3413.3,3412.4,3.7395]
[1754166947472,0.001,3413.4,3412.5,2.93039773]
[1754166947672,0.001,3413.4,3412.5,0.7395]
[1754166948104,0.001,3413.4,3413.1,0.1464]
[1754166948459,1.1878,3413.3,3413.1,0.1464]
[1754166949091,1.1878,3413.2,3412.4,3.0]
[1754166949365,0.001,3413.4,3412.5,0.1464]
[1754166949366,0.1464,3413.0,3412.5,0.1464]
[1754166949596,1.1878,3412.9,3412.5,0.1464]
[1754166949898,1.1878,3412.8,3412.5,0.1464]
[1754166950468,0.4374,3412.8,3412.5,0.1464]
[1754166950671,0.1464,3413.0,3412.5,3.07679393]
[1754166950977,0.1464,3413.0,3412.6,0.7395]
[1754166951492,0.001,3413.4,3413.1,3.0]
[1754166951805,0.001,3413.4,3413.2,0.7395]
[1754166952297,0.001,3413.4,3413.3,6.82591611]
[1754166952690,0.001,3413.4,3413.3,3.8962]
[1754166952904,0.001,3413.4,3413.3,6.82591611]
[1754166953076,0.001,3413.4,3413.3,7.17901611]
[1754166953408,0.001,3414.3,3413.7,2.92931045]
[1754166953702,0.001,3414.3,3413.7,0.22555082]
[1754166953882,0.6941,3414.3,3414.2,0.1464]
[1754166954196,1.1275,3414.3,3414.2,0.1464]
[1754166955199,1.1275,3414.3,3412.5,0.880361]
[1754166955200,1.1275,3414.3,3413.9,0.1464]
[1754166955402,0.6931,3414.2,3413.9,0.1464]
[1754166955583,0.4334,3414.2,3413.7,0.37025869]
[1754166955924,1.1265,3414.1,3414.0,0.1464]
[1754166956265,0.001,3414.3,3414.0,0.1464]
[1754166956612,1.1265,3414.2,3414.0,0.1464]
[1754166956772,0.6931,3414.1,3414.0,0.1464]
[1754166957100,1.1265,3414.1,3414.0,0.1464]
[1754166957475,0.001,3414.3,3414.0,0.1464]
[1754166958002,1.1265,3414.2,3414.0,0.1464]
[1754166958761,0.6931,3414.1,3414.0,0.1464]
[1754166958976,1.2729,3414.1,3413.7,0.22282781]
[1754166959175,0.1464,3413.8,3413.7,0.22282781]
[1754166959374,1.2729,3413.8,3413.7,0.22282781]
[1754166960302,1.1265,3413.8,3413.7,0.22282781]
[1754166960791,4.575,3414.0,3413.7,0.22282781]
[1754166960997,4.575,3414.0,3413.7,0.36922781]
[1754166961195,0.6931,3413.9,3413.7,0.36922781]
[1754166961369,0.6931,3413.8,3413.7,0.36922781]
[1754166961703,1.1265,3413.8,3413.7,0.22282781]
[1754166961891,1.2729,3413.8,3413.7,0.22282781]
[1754166962991,0.1464,3413.8,3413.7,0.22282781]
[1754166963208,4.7204,3413.8,3413.7,0.22282781]
[1754166963370,0.6931,3414.0,3413.7,0.22282781]
[1754166963570,4.574,3414.1,3413.7,0.97262781]
[1754166963805,4.574,3414.1,3413.9,0.1464]
[1754166964170,0.001,3414.3,3413.9,0.8962]
[1754166964505,0.001,3414.3,3414.2,0.1464]
[1754166965906,0.001,3414.3,3414.2,1.2493]
[1754166966496,0.001,3414.3,3414.2,4.2493]
[1754166966875,0.001,3414.3,3414.2,0.1464]
[1754166967971,0.001,3414.3,3414.2,3.1464]
[1754166968309,0.001,3414.3,3414.2,0.1464]
[1754166969200,0.6941,3414.3,3414.2,0.1464]
[1754166969377,1.1275,3414.3,3414.2,0.1464]
[1754166970192,1.1275,3414.3,3413.7,0.22282781]
[1754166970386,1.1275,3414.3,3414.1,0.1464]
[1754166970607,0.001,3414.3,3414.1,0.1464]
[1754166970916,1.1265,3414.2,3414.1,0.1464]
[1754166971114,0.001,3414.3,3414.1,0.1464]
[1754166971879,1.1265,3414.2,3413.7,0.22282781]
[1754166972112,0.001,3414.3,3413.9,0.1464]
[1754166972621,1.1265,3414.2,3413.9,0.1464]
[1754166972828,0.4334,3414.2,3413.9,0.1464]
[1754166973122,0.001,3414.3,3413.9,0.1464]
[1754166973421,1.1275,3414.3,3413.9,0.1464]
[1754166974485,1.1265,3414.2,3413.9,0.1464]
[1754166974919,1.1265,3414.1,3413.9,0.1464]
[1754166975350,0.6931,3414.0,3413.9,0.1464]
[1754166975644,1.1265,3414.0,3413.9,0.1464]
[1754166975806,1.2729,3414.0,3413.7,0.22282781]
[1754166976002,1.1265,3413.9,3413.7,0.22282781]
[1754166976401,0.6931,3413.8,3413.7,0.22282781]
[1754166976621,1.1265,3413.8,3413.7,0.22282781]
[1754166978035,1.2729,3413.8,3413.7,0.22282781]
[1754166981214,1.2729,3413.8,3413.0,0.29970595]
[1754166981397,1.2729,3413.8,3413.0,0.1484]
[1754166981824,1.1265,3413.8,3413.0,0.8982]
[1754166982020,0.1464,3413.5,3413.0,0.8982]
[1754166982335,4.573,3414.0,3413.1,1.073]
[1754166982628,0.83,3413.9,3413.4,0.1464]
[1754166982800,0.4545,3413.8,3413.3,0.1464]
[1754166983236,1.1381,3413.7,3413.3,0.1464]
[1754166983434,1.1381,3413.6,3413.0,0.002]
[1754166983608,0.0366193,3413.5,3413.0,0.002]
[1754166983816,0.1464,3413.1,3413.0,0.002]
[1754166984337,1.2845,3413.1,3413.0,0.002]
[1754166985531,1.87112359,3413.1,3413.0,0.002]
[1754166985907,1.8345,3413.1,3413.0,0.002]
[1754166986534,1.87112359,3413.1,3413.0,0.002]
[1754166987808,1.8345,3413.1,3413.0,0.002]